[Event "FIDE World Rapid Chess Championship 2021"]
[White "Rapport, Richard"]
[Black "Volokitin, Andrei"]
[WhiteFideId "738590"]
[BlackFideId "14107090"]
[WhiteElo "2750"]
[BlackElo "2631"]
[Result "1/2-1/2"]
[Round "10"]
[TimeControl "900+10"]
[Date "2021.12.28"]
[WhiteClock "0:00:44"]
[BlackClock "0:00:29"]

1. e4 {[%clk 0:15:00]}  c5 {[%clk 0:14:22]} 2. Nf3 {[%clk 0:15:12]}  d6 {[%clk 0:14:22]} 3. Bd3 {[%clk 0:15:12]}  Nf6 {[%clk 0:14:22]} 4. O-O {[%clk 0:15:12]}  Nc6 {[%clk 0:11:35]} 5. Re1 {[%clk 0:15:02]}  Bg4 {[%clk 0:11:35]} 6. Bb5 {[%clk 0:15:02]}  e5 {[%clk 0:04:54]} 7. c3 {[%clk 0:15:02]}  Be7 {[%clk 0:04:54]} 8. h3 {[%clk 0:15:02]}  Bh5 {[%clk 0:04:54]} 9. d4 {[%clk 0:14:00]}  Bxf3 {[%clk 0:04:26]} 10. gxf3 {[%clk 0:14:00]}  cxd4 {[%clk 0:04:04]} 11. cxd4 {[%clk 0:14:00]}  O-O {[%clk 0:04:04]} 12. Bxc6 {[%clk 0:14:00]}  bxc6 {[%clk 0:04:04]} 13. dxe5 {[%clk 0:14:00]}  dxe5 {[%clk 0:04:04]} 14. Qxd8 {[%clk 0:14:00]}  Rfxd8 {[%clk 0:04:04]} 15. Be3 {[%clk 0:09:54]}  Nh5 {[%clk 0:04:11]} 16. Nd2 {[%clk 0:09:54]}  Nf4 {[%clk 0:03:06]} 17. Bxf4 {[%clk 0:09:46]}  exf4 {[%clk 0:03:06]} 18. Nc4 {[%clk 0:09:46]}  Bc5 {[%clk 0:01:48]} 19. Rac1 {[%clk 0:07:27]}  Bd4 {[%clk 0:01:48]} 20. Kg2 {[%clk 0:07:27]}  c5 {[%clk 0:01:48]} 21. h4 {[%clk 0:07:27]}  h5 {[%clk 0:01:48]} 22. e5 {[%clk 0:07:27]}  Rd5 {[%clk 0:00:46]} 23. Re4 {[%clk 0:06:52]}  Re8 {[%clk 0:00:46]} 24. Rce1 {[%clk 0:06:52]}  Re6 {[%clk 0:00:46]} 25. Rd1 {[%clk 0:06:42]}  f5 {[%clk 0:00:38]} 26. Rxf4 {[%clk 0:06:42]}  g6 {[%clk 0:00:38]} 27. b4 {[%clk 0:06:42]}  Bxe5 {[%clk 0:00:21]} 28. Rxd5 {[%clk 0:03:49]}  Bxf4 {[%clk 0:00:21]} 29. b5 {[%clk 0:03:49]}  Re2 {[%clk 0:00:21]} 30. Rd8+ {[%clk 0:03:49]}  Kf7 {[%clk 0:00:21]} 31. Rd7+ {[%clk 0:03:49]}  Re7 {[%clk 0:00:21]} 32. Rd8 {[%clk 0:02:10]}  Re2 {[%clk 0:00:15]} 33. Ra8 {[%clk 0:02:10]}  Re7 {[%clk 0:00:15]} 34. a4 {[%clk 0:00:00]}  Ke6 {[%clk 0:00:27]} 35. Na5 {[%clk 0:00:00]}  Rc7 {[%clk 0:00:27]} 36. Nc4 {[%clk 0:00:00]}  Kd5 {[%clk 0:00:27]} 37. b6 {[%clk 0:00:00]}  axb6 {[%clk 0:00:27]} 38. Nxb6+ {[%clk 0:00:00]}  Kc6 {[%clk 0:00:27]} 39. Nc4 {[%clk 0:00:00]}  Kd5 {[%clk 0:00:27]} 40. Nb6+ {[%clk 0:00:00]}  Kc6 {[%clk 0:00:27]} 41. a5 {[%clk 0:00:00]}  Kb7 {[%clk 0:00:27]} 42. Re8 {[%clk 0:00:42]}  Rc6 {[%clk 0:00:26]} 43. Nc4 {[%clk 0:00:42]}  Ka6 {[%clk 0:00:26]} 44. Ra8+ {[%clk 0:00:42]}  Kb5 {[%clk 0:00:26]} 45. Na3+ {[%clk 0:00:42]}  Kb4 {[%clk 0:00:26]} 46. Nc2+ {[%clk 0:00:42]}  Kb3 {[%clk 0:00:26]} 47. Ne1 {[%clk 0:00:42]}  c4 {[%clk 0:00:26]} 48. a6 {[%clk 0:00:42]}  Kc3 {[%clk 0:00:26]} 49. Kf1 {[%clk 0:00:42]}  Bd2 {[%clk 0:00:26]} 50. Ng2 {[%clk 0:00:42]}  f4 {[%clk 0:00:53]} 51. Ke2 {[%clk 0:00:34]}  Kc2 {[%clk 0:00:53]} 52. a7 {[%clk 0:00:34]}  Re6+ {[%clk 0:00:53]} 53. Ne3+ {[%clk 0:00:34]}  fxe3 {[%clk 0:00:53]} 54. Rc8 {[%clk 0:00:34]}  exf2+ {[%clk 0:00:53]} 55. Kf1 {[%clk 0:00:34]}  Ra6 {[%clk 0:00:53]} 56. a8=Q {[%clk 0:00:34]}  Rxa8 {[%clk 0:00:53]} 57. Rxa8 {[%clk 0:00:34]}  c3 {[%clk 0:00:53]} 58. Kxf2 {[%clk 0:00:34]}  Kd1 {[%clk 0:00:53]} 59. Ra1+ {[%clk 0:00:34]}  Bc1 {[%clk 0:00:53]} 60. f4 {[%clk 0:00:34]}  c2 {[%clk 0:00:53]} 61. Kf3 {[%clk 0:00:34]}  Kd2 {[%clk 0:00:53]} 62. f5 {[%clk 0:00:34]}  gxf5 {[%clk 0:00:29]} 63. Kf4 {[%clk 0:00:44]}  Bb2 {[%clk 0:00:29]} 64. Rh1 {[%clk 0:00:44]}  Ke2 {[%clk 0:00:29]} 65. Rh2+ {[%clk 0:00:44]}  Kd3 {[%clk 0:00:29]} 66. Rxc2 {[%clk 0:00:44]}  Kxc2 {[%clk 0:00:29]} 67. Kxf5 {[%clk 0:00:44]}  Kd3 {[%clk 0:00:29]} 68. Kg5 {[%clk 0:00:44]}  Ke4 {[%clk 0:00:29]} 69. Kxh5 {[%clk 0:00:44]}  Ke5 {[%clk 0:00:29]} 1/2-1/2


[Site "http://www.Chess.com"]

[Event "FIDE World Rapid Chess Championship 2021"]
[White "Vachier-Lagrave, Maxime"]
[Black "Predke, Alexandr"]
[WhiteFideId "623539"]
[BlackFideId "24107581"]
[WhiteElo "2773"]
[BlackElo "2630"]
[Result "1/2-1/2"]
[Round "10"]
[TimeControl "900+10"]
[Date "2021.12.28"]
[WhiteClock "0:02:01"]
[BlackClock "0:00:37"]

1. e4 {[%clk 0:15:00]}  e5 {[%clk 0:15:00]} 2. Nf3 {[%clk 0:15:00]}  Nc6 {[%clk 0:15:00]} 3. Bc4 {[%clk 0:15:19]}  Bc5 {[%clk 0:14:59]} 4. O-O {[%clk 0:15:19]}  Nf6 {[%clk 0:14:59]} 5. d3 {[%clk 0:15:19]}  h6 {[%clk 0:14:59]} 6. c3 {[%clk 0:15:19]}  d6 {[%clk 0:14:59]} 7. Re1 {[%clk 0:15:19]}  O-O {[%clk 0:14:59]} 8. Nbd2 {[%clk 0:15:19]}  Bb6 {[%clk 0:14:59]} 9. Bb3 {[%clk 0:15:19]}  a5 {[%clk 0:14:25]} 10. Nc4 {[%clk 0:13:44]}  Ba7 {[%clk 0:14:25]} 11. Ne3 {[%clk 0:13:44]}  Ng4 {[%clk 0:14:25]} 12. h3 {[%clk 0:13:44]}  Nxe3 {[%clk 0:14:25]} 13. Bxe3 {[%clk 0:13:44]}  Bxe3 {[%clk 0:14:25]} 14. Rxe3 {[%clk 0:13:44]}  Ne7 {[%clk 0:14:20]} 15. Nh4 {[%clk 0:11:40]}  Nd5 {[%clk 0:11:37]} 16. Bxd5 {[%clk 0:11:40]}  Qxh4 {[%clk 0:11:37]} 17. a4 {[%clk 0:11:40]}  Qe7 {[%clk 0:11:37]} 18. d4 {[%clk 0:11:40]}  Be6 {[%clk 0:09:52]} 19. Qb3 {[%clk 0:11:40]}  exd4 {[%clk 0:09:52]} 20. cxd4 {[%clk 0:11:40]}  Ra6 {[%clk 0:09:52]} 21. Bxe6 {[%clk 0:10:46]}  fxe6 {[%clk 0:09:00]} 22. Rc1 {[%clk 0:10:46]}  Rb6 {[%clk 0:09:00]} 23. Qc3 {[%clk 0:10:46]}  c6 {[%clk 0:09:00]} 24. b3 {[%clk 0:10:46]}  Rb4 {[%clk 0:09:00]} 25. Qd2 {[%clk 0:10:46]}  Qg5 {[%clk 0:07:12]} 26. Rc2 {[%clk 0:07:20]}  d5 {[%clk 0:06:40]} 27. Qd3 {[%clk 0:05:04]}  Qd8 {[%clk 0:06:40]} 28. exd5 {[%clk 0:05:04]}  exd5 {[%clk 0:04:09]} 29. Re6 {[%clk 0:05:04]}  Qh4 {[%clk 0:04:07]} 30. Rd2 {[%clk 0:03:17]}  Qf4 {[%clk 0:04:07]} 31. Re3 {[%clk 0:03:17]}  Qf5 {[%clk 0:04:07]} 32. Qe2 {[%clk 0:03:17]}  Qf4 {[%clk 0:02:26]} 33. g3 {[%clk 0:02:21]}  Qf6 {[%clk 0:02:26]} 34. Qd3 {[%clk 0:02:21]}  Qf5 {[%clk 0:02:26]} 35. Qf1 {[%clk 0:02:21]}  Qf6 {[%clk 0:01:53]} 36. Red3 {[%clk 0:02:11]}  Re8 {[%clk 0:01:53]} 37. Kg2 {[%clk 0:02:11]}  Re4 {[%clk 0:01:53]} 38. Qd1 {[%clk 0:02:11]}  Qe6 {[%clk 0:01:50]} 39. Qf3 {[%clk 0:01:27]}  Re1 {[%clk 0:01:50]} 40. Rd1 {[%clk 0:01:27]}  Re2 {[%clk 0:01:50]} 41. R1d2 {[%clk 0:01:27]}  Rxd2 {[%clk 0:01:50]} 42. Rxd2 {[%clk 0:01:27]}  Qe4 {[%clk 0:01:50]} 43. Qxe4 {[%clk 0:01:27]}  dxe4 {[%clk 0:01:50]} 44. d5 {[%clk 0:01:27]}  cxd5 {[%clk 0:00:59]} 45. Rxd5 {[%clk 0:01:28]}  b6 {[%clk 0:00:59]} 46. Re5 {[%clk 0:01:28]}  Kf7 {[%clk 0:00:59]} 47. g4 {[%clk 0:01:28]}  Kf6 {[%clk 0:00:59]} 48. Re8 {[%clk 0:01:28]}  Kf7 {[%clk 0:00:59]} 49. Re5 {[%clk 0:01:28]}  Rxb3 {[%clk 0:00:59]} 50. Rxe4 {[%clk 0:01:28]}  Rb4 {[%clk 0:00:59]} 51. Kf3 {[%clk 0:01:28]}  Rb3+ {[%clk 0:00:59]} 52. Re3 {[%clk 0:01:28]}  Rb4 {[%clk 0:00:59]} 53. Re4 {[%clk 0:01:28]}  b5 {[%clk 0:00:37]} 54. axb5 {[%clk 0:02:01]}  Rxb5 {[%clk 0:00:37]} 1/2-1/2


[Site "http://www.Chess.com"]

[Event "FIDE World Rapid Chess Championship 2021"]
[White "Matlakov, Maxim"]
[Black "Giri, Anish"]
[WhiteFideId "4168003"]
[BlackFideId "24116068"]
[WhiteElo "2652"]
[BlackElo "2767"]
[Result "1/2-1/2"]
[Round "10"]
[TimeControl "900+10"]
[Date "2021.12.28"]
[WhiteClock "0:01:56"]
[BlackClock "0:01:56"]

1. e4 {[%clk 0:15:00]}  c5 {[%clk 0:15:00]} 2. Nf3 {[%clk 0:15:52]}  d6 {[%clk 0:15:55]} 3. d4 {[%clk 0:15:52]}  cxd4 {[%clk 0:15:55]} 4. Nxd4 {[%clk 0:15:52]}  Nf6 {[%clk 0:15:55]} 5. Nc3 {[%clk 0:15:52]}  a6 {[%clk 0:15:55]} 6. Be2 {[%clk 0:15:52]}  e5 {[%clk 0:15:55]} 7. Nb3 {[%clk 0:15:52]}  Be7 {[%clk 0:15:55]} 8. Be3 {[%clk 0:15:52]}  Be6 {[%clk 0:15:55]} 9. O-O {[%clk 0:15:52]}  O-O {[%clk 0:15:55]} 10. Qd3 {[%clk 0:15:52]}  Nbd7 {[%clk 0:15:55]} 11. a4 {[%clk 0:15:52]}  Qc7 {[%clk 0:12:18]} 12. a5 {[%clk 0:15:44]}  Rac8 {[%clk 0:12:18]} 13. Rfd1 {[%clk 0:15:44]}  Rfe8 {[%clk 0:12:18]} 14. Bf3 {[%clk 0:15:44]}  h6 {[%clk 0:12:18]} 15. h3 {[%clk 0:14:56]}  Nf8 {[%clk 0:12:00]} 16. Nd2 {[%clk 0:12:20]}  Ng6 {[%clk 0:11:48]} 17. Nf1 {[%clk 0:12:20]}  Qd7 {[%clk 0:11:48]} 18. Rac1 {[%clk 0:12:20]}  Nh4 {[%clk 0:08:23]} 19. Bb6 {[%clk 0:12:20]}  Nxf3+ {[%clk 0:08:11]} 20. Qxf3 {[%clk 0:07:42]}  Bd8 {[%clk 0:08:11]} 21. Bxd8 {[%clk 0:07:42]}  Rexd8 {[%clk 0:07:36]} 22. Ne3 {[%clk 0:05:50]}  Rc5 {[%clk 0:06:24]} 23. Ncd5 {[%clk 0:05:50]}  Bxd5 {[%clk 0:06:24]} 24. exd5 {[%clk 0:05:50]}  Rxa5 {[%clk 0:06:24]} 25. c4 {[%clk 0:05:50]}  b6 {[%clk 0:05:36]} 26. b4 {[%clk 0:02:00]}  Ra4 {[%clk 0:03:59]} 27. c5 {[%clk 0:02:00]}  bxc5 {[%clk 0:03:59]} 28. bxc5 {[%clk 0:02:00]}  dxc5 {[%clk 0:03:59]} 29. Rxc5 {[%clk 0:02:00]}  Rf4 {[%clk 0:03:59]} 30. Qe2 {[%clk 0:02:00]}  Ne4 {[%clk 0:03:59]} 31. Rc4 {[%clk 0:02:00]}  Nxf2 {[%clk 0:03:09]} 32. Rdc1 {[%clk 0:02:03]}  Ne4 {[%clk 0:03:09]} 33. Kh2 {[%clk 0:00:41]}  Nf6 {[%clk 0:00:23]} 34. Rc5 {[%clk 0:00:32]}  Ra4 {[%clk 0:00:23]} 35. Qf3 {[%clk 0:00:32]}  Rf4 {[%clk 0:00:23]} 36. Qe2 {[%clk 0:00:32]}  Qb7 {[%clk 0:00:23]} 37. Qa2 {[%clk 0:00:32]}  Rb4 {[%clk 0:00:23]} 38. Rc7 {[%clk 0:00:32]}  Rb2 {[%clk 0:00:23]} 39. Rxb7 {[%clk 0:00:32]}  Rxa2 {[%clk 0:00:23]} 40. Rcc7 {[%clk 0:00:32]}  Rf8 {[%clk 0:00:23]} 41. d6 {[%clk 0:00:32]}  Rd2 {[%clk 0:00:23]} 42. Nc4 {[%clk 0:00:32]}  Rd4 {[%clk 0:00:23]} 43. Nxe5 {[%clk 0:00:32]}  Ne8 {[%clk 0:00:23]} 44. Rxf7 {[%clk 0:00:32]}  Rxf7 {[%clk 0:00:23]} 45. Nxf7 {[%clk 0:00:32]}  Nxd6 {[%clk 0:00:23]} 46. Nxd6 {[%clk 0:00:32]}  Rxd6 {[%clk 0:00:23]} 47. Ra7 {[%clk 0:00:32]}  h5 {[%clk 0:00:23]} 48. h4 {[%clk 0:00:32]}  Kh7 {[%clk 0:00:23]} 49. Kg3 {[%clk 0:00:32]}  Rf6 {[%clk 0:00:23]} 50. Rc7 {[%clk 0:00:32]}  Kg6 {[%clk 0:01:56]} 51. Rc5 {[%clk 0:01:56]}  Rb6 {[%clk 0:01:56]} 52. Ra5 {[%clk 0:01:56]}  Rf6 {[%clk 0:01:56]} 53. Rg5+ {[%clk 0:01:56]}  Kh6 {[%clk 0:01:56]} 54. Ra5 {[%clk 0:01:56]}  g6 {[%clk 0:01:56]} 55. Kh3 {[%clk 0:01:56]}  Kg7 {[%clk 0:01:56]} 56. g4 {[%clk 0:01:56]}  hxg4+ {[%clk 0:01:56]} 57. Kxg4 {[%clk 0:01:56]}  Kf7 {[%clk 0:01:56]} 58. h5 {[%clk 0:01:56]}  gxh5+ {[%clk 0:01:56]} 59. Kxh5 {[%clk 0:01:56]}  Ke7 {[%clk 0:01:56]} 60. Kg5 {[%clk 0:01:56]}  Rb6 {[%clk 0:01:56]} 61. Kf4 {[%clk 0:01:56]}  Kd6 {[%clk 0:01:56]} 62. Ke4 {[%clk 0:01:56]}  Kc7 {[%clk 0:01:56]} 63. Kd4 {[%clk 0:01:56]}  Rc6 {[%clk 0:01:56]} 1/2-1/2


[Site "http://www.Chess.com"]

[Event "FIDE World Rapid Chess Championship 2021"]
[White "Anton Guijarro, David"]
[Black "Karjakin, Sergey"]
[WhiteFideId "2285525"]
[BlackFideId "14109603"]
[WhiteElo "2627"]
[BlackElo "2757"]
[Result "0-1"]
[Round "10"]
[TimeControl "900+10"]
[Date "2021.12.28"]
[WhiteClock "0:03:03"]
[BlackClock "0:04:49"]

1. d4 {[%clk 0:15:00]}  Nf6 {[%clk 0:15:00]} 2. Nf3 {[%clk 0:15:00]}  d5 {[%clk 0:14:40]} 3. e3 {[%clk 0:14:48]}  e6 {[%clk 0:14:40]} 4. Bd3 {[%clk 0:14:48]}  Be7 {[%clk 0:14:40]} 5. O-O {[%clk 0:14:48]}  O-O {[%clk 0:14:40]} 6. b3 {[%clk 0:14:48]}  b6 {[%clk 0:14:40]} 7. Bb2 {[%clk 0:14:48]}  c5 {[%clk 0:14:40]} 8. dxc5 {[%clk 0:13:23]}  Bxc5 {[%clk 0:14:41]} 9. Nbd2 {[%clk 0:13:23]}  Bb7 {[%clk 0:14:41]} 10. c4 {[%clk 0:13:23]}  Nbd7 {[%clk 0:14:41]} 11. Qe2 {[%clk 0:13:23]}  dxc4 {[%clk 0:14:41]} 12. Nxc4 {[%clk 0:13:23]}  Qe7 {[%clk 0:14:41]} 13. a3 {[%clk 0:13:23]}  a5 {[%clk 0:14:41]} 14. Rfd1 {[%clk 0:10:59]}  Rfd8 {[%clk 0:14:57]} 15. Nd4 {[%clk 0:10:59]}  Nf8 {[%clk 0:14:57]} 16. Nb5 {[%clk 0:09:49]}  Ng6 {[%clk 0:15:04]} 17. Bd4 {[%clk 0:09:49]}  Nh4 {[%clk 0:15:04]} 18. f3 {[%clk 0:07:34]}  Bxd4 {[%clk 0:15:04]} 19. Nxd4 {[%clk 0:07:34]}  e5 {[%clk 0:11:27]} 20. Nf5 {[%clk 0:07:49]}  Nxf5 {[%clk 0:11:27]} 21. Bxf5 {[%clk 0:07:49]}  g6 {[%clk 0:11:27]} 22. Bh3 {[%clk 0:07:49]}  Nd5 {[%clk 0:10:07]} 23. Qb2 {[%clk 0:07:02]}  f6 {[%clk 0:10:07]} 24. e4 {[%clk 0:07:02]}  Nf4 {[%clk 0:07:50]} 25. Nxb6 {[%clk 0:06:26]}  Rxd1+ {[%clk 0:07:50]} 26. Rxd1 {[%clk 0:06:26]}  Rd8 {[%clk 0:07:50]} 27. Nd5 {[%clk 0:06:26]}  Bxd5 {[%clk 0:07:50]} 28. exd5 {[%clk 0:06:26]}  Qc5+ {[%clk 0:06:40]} 29. Qf2 {[%clk 0:06:00]}  Qxa3 {[%clk 0:05:22]} 30. Qb6 {[%clk 0:04:27]}  Rd6 {[%clk 0:05:22]} 31. Qc7 {[%clk 0:04:27]}  Qxb3 {[%clk 0:04:49]} 32. Re1 {[%clk 0:03:03]}  Qxd5 {[%clk 0:04:49]} 0-1


[Site "http://www.Chess.com"]

[Event "FIDE World Rapid Chess Championship 2021"]
[White "Ponkratov, Pavel"]
[Black "Wojtaszek, Radoslaw"]
[WhiteFideId "4157800"]
[BlackFideId "1118358"]
[WhiteElo "2614"]
[BlackElo "2743"]
[Result "1-0"]
[Round "10"]
[TimeControl "900+10"]
[Date "2021.12.28"]
[WhiteClock "0:08:12"]
[BlackClock "0:05:53"]

1. e4 {[%clk 0:15:00]}  c5 {[%clk 0:15:00]} 2. Nf3 {[%clk 0:15:00]}  d6 {[%clk 0:15:00]} 3. d4 {[%clk 0:15:00]}  cxd4 {[%clk 0:15:00]} 4. Nxd4 {[%clk 0:16:19]}  Nf6 {[%clk 0:15:55]} 5. Nc3 {[%clk 0:16:19]}  a6 {[%clk 0:15:55]} 6. h3 {[%clk 0:16:19]}  e5 {[%clk 0:15:55]} 7. Nf3 {[%clk 0:16:19]}  Be7 {[%clk 0:15:55]} 8. g4 {[%clk 0:16:19]}  h6 {[%clk 0:15:55]} 9. Rg1 {[%clk 0:16:19]}  Qc7 {[%clk 0:12:08]} 10. g5 {[%clk 0:16:34]}  hxg5 {[%clk 0:12:08]} 11. Nxg5 {[%clk 0:16:34]}  b5 {[%clk 0:12:08]} 12. a4 {[%clk 0:16:34]}  b4 {[%clk 0:12:08]} 13. Nd5 {[%clk 0:16:34]}  Nxd5 {[%clk 0:12:08]} 14. Qxd5 {[%clk 0:16:34]}  Bxg5 {[%clk 0:12:31]} 15. Rxg5 {[%clk 0:14:45]}  Bb7 {[%clk 0:12:31]} 16. Qd3 {[%clk 0:14:45]}  f6 {[%clk 0:12:26]} 17. Rg6 {[%clk 0:12:41]}  Nc6 {[%clk 0:10:18]} 18. Be3 {[%clk 0:11:06]}  O-O-O {[%clk 0:10:18]} 19. O-O-O {[%clk 0:11:06]}  Qf7 {[%clk 0:10:18]} 20. Rg3 {[%clk 0:11:06]}  Rd7 {[%clk 0:10:18]} 21. h4 {[%clk 0:11:17]}  Kc7 {[%clk 0:08:16]} 22. Bh3 {[%clk 0:09:39]}  Rdd8 {[%clk 0:08:16]} 23. Rdg1 {[%clk 0:09:39]}  Qa2 {[%clk 0:05:53]} 24. Rxg7+ {[%clk 0:08:12]}  Kb8 {[%clk 0:05:53]} 25. Rxb7+ {[%clk 0:08:12]}  Kxb7 {[%clk 0:05:53]} 26. Rg7+ {[%clk 0:08:12]} 1-0


[Site "http://www.Chess.com"]

[Event "FIDE World Rapid Chess Championship 2021"]
[White "Timofeev, Artyom"]
[Black "Dubov, Daniil"]
[WhiteFideId "4140419"]
[BlackFideId "24126055"]
[WhiteElo "2591"]
[BlackElo "2735"]
[Result "0-1"]
[Round "10"]
[TimeControl "900+10"]
[Date "2021.12.28"]
[WhiteClock "0:01:57"]
[BlackClock "0:03:36"]

1. e4 {[%clk 0:15:00]}  c6 {[%clk 0:15:00]} 2. d4 {[%clk 0:14:06]}  d5 {[%clk 0:15:54]} 3. Nc3 {[%clk 0:14:06]}  dxe4 {[%clk 0:15:54]} 4. Nxe4 {[%clk 0:14:06]}  Nf6 {[%clk 0:15:54]} 5. Nxf6+ {[%clk 0:14:06]}  exf6 {[%clk 0:15:54]} 6. Nf3 {[%clk 0:14:06]}  Bd6 {[%clk 0:15:54]} 7. Be2 {[%clk 0:14:06]}  O-O {[%clk 0:15:54]} 8. O-O {[%clk 0:14:06]}  Re8 {[%clk 0:15:54]} 9. h3 {[%clk 0:14:06]}  Nd7 {[%clk 0:15:54]} 10. Re1 {[%clk 0:14:06]}  Nf8 {[%clk 0:15:54]} 11. Bf1 {[%clk 0:14:06]}  Be6 {[%clk 0:16:17]} 12. Be3 {[%clk 0:13:31]}  Ng6 {[%clk 0:16:17]} 13. c4 {[%clk 0:13:31]}  Qd7 {[%clk 0:16:17]} 14. Qc2 {[%clk 0:10:31]}  Bf5 {[%clk 0:15:32]} 15. Qb3 {[%clk 0:10:31]}  Rad8 {[%clk 0:15:32]} 16. Rad1 {[%clk 0:10:31]}  Be4 {[%clk 0:14:09]} 17. Nd2 {[%clk 0:10:12]}  Bf5 {[%clk 0:14:09]} 18. Nf3 {[%clk 0:10:12]}  a6 {[%clk 0:14:09]} 19. a4 {[%clk 0:10:12]}  h5 {[%clk 0:14:09]} 20. a5 {[%clk 0:10:12]}  Bc7 {[%clk 0:14:09]} 21. Qa3 {[%clk 0:10:12]}  Be4 {[%clk 0:14:09]} 22. Nd2 {[%clk 0:08:57]}  Bc2 {[%clk 0:13:45]} 23. Rc1 {[%clk 0:08:57]}  Bf5 {[%clk 0:13:45]} 24. Nf3 {[%clk 0:08:57]}  Re7 {[%clk 0:13:45]} 25. Red1 {[%clk 0:08:57]}  Bd6 {[%clk 0:13:28]} 26. Qa4 {[%clk 0:07:38]}  Qc8 {[%clk 0:12:14]} 27. c5 {[%clk 0:07:07]}  Bf4 {[%clk 0:12:14]} 28. Re1 {[%clk 0:07:07]}  Be4 {[%clk 0:09:11]} 29. Bxf4 {[%clk 0:06:22]}  Nxf4 {[%clk 0:09:11]} 30. Nd2 {[%clk 0:06:22]}  Qf5 {[%clk 0:09:11]} 31. Rxe4 {[%clk 0:05:31]}  Rxe4 {[%clk 0:07:59]} 32. Nxe4 {[%clk 0:05:31]}  Qxe4 {[%clk 0:07:59]} 33. Qb3 {[%clk 0:05:31]}  Rd5 {[%clk 0:08:14]} 34. Qe3 {[%clk 0:03:25]}  Rxd4 {[%clk 0:07:13]} 35. Qxe4 {[%clk 0:02:04]}  Rxe4 {[%clk 0:07:13]} 36. Rc4 {[%clk 0:02:04]}  f5 {[%clk 0:07:13]} 37. h4 {[%clk 0:02:04]}  Ne6 {[%clk 0:07:13]} 38. b4 {[%clk 0:02:04]}  Re1 {[%clk 0:07:13]} 39. g3 {[%clk 0:02:04]}  Kf8 {[%clk 0:06:14]} 40. Kg2 {[%clk 0:01:35]}  Ke7 {[%clk 0:06:14]} 41. Bd3 {[%clk 0:01:35]}  g6 {[%clk 0:06:14]} 42. Rc3 {[%clk 0:01:35]}  f4 {[%clk 0:06:14]} 43. Bc4 {[%clk 0:01:35]}  fxg3 {[%clk 0:06:14]} 44. fxg3 {[%clk 0:01:35]}  Re4 {[%clk 0:06:14]} 45. Kf3 {[%clk 0:01:35]}  f5 {[%clk 0:06:14]} 46. Bxe6 {[%clk 0:01:35]}  Kxe6 {[%clk 0:06:14]} 47. Rd3 {[%clk 0:01:54]}  Rxb4 {[%clk 0:06:41]} 48. Rd6+ {[%clk 0:01:54]}  Kf7 {[%clk 0:06:41]} 49. Rd7+ {[%clk 0:01:54]}  Kf6 {[%clk 0:06:41]} 50. Rd6+ {[%clk 0:01:54]}  Kg7 {[%clk 0:06:41]} 51. Rd7+ {[%clk 0:01:54]}  Kh6 {[%clk 0:06:41]} 52. Re7 {[%clk 0:01:54]}  Rb5 {[%clk 0:04:03]} 53. Kf4 {[%clk 0:01:48]}  Rxa5 {[%clk 0:04:03]} 54. Rxb7 {[%clk 0:01:48]}  Rxc5 {[%clk 0:04:03]} 55. Rc7 {[%clk 0:01:48]}  a5 {[%clk 0:04:03]} 56. Ra7 {[%clk 0:01:48]}  Rd5 {[%clk 0:04:03]} 57. Ra6 {[%clk 0:01:48]}  Rc5 {[%clk 0:04:03]} 58. Ra7 {[%clk 0:01:48]}  g5+ {[%clk 0:04:03]} 59. hxg5+ {[%clk 0:01:48]}  Kg6 {[%clk 0:04:03]} 60. Ra8 {[%clk 0:01:48]}  Rc4+ {[%clk 0:04:03]} 61. Ke5 {[%clk 0:01:48]}  Re4+ {[%clk 0:04:03]} 62. Kd6 {[%clk 0:01:48]}  Kxg5 {[%clk 0:04:03]} 63. Rg8+ {[%clk 0:01:48]}  Kf6 {[%clk 0:03:36]} 64. Rf8+ {[%clk 0:01:57]}  Kg6 {[%clk 0:03:36]} 65. Rg8+ {[%clk 0:01:57]}  Kf7 {[%clk 0:03:36]} 66. Rg5 {[%clk 0:01:57]}  Kf6 {[%clk 0:03:36]} 67. Rxh5 {[%clk 0:01:57]}  Re3 {[%clk 0:03:36]} 0-1


[Site "http://www.Chess.com"]

[Event "FIDE World Rapid Chess Championship 2021"]
[White "Salem, A.R. Saleh"]
[Black "Najer, Evgeniy"]
[WhiteFideId "9301348"]
[BlackFideId "4118987"]
[WhiteElo "2729"]
[BlackElo "2565"]
[Result "1-0"]
[Round "10"]
[TimeControl "900+10"]
[Date "2021.12.28"]
[WhiteClock "0:00:13"]
[BlackClock "0:00:29"]

1. d4 {[%clk 0:15:00]}  d5 {[%clk 0:15:00]} 2. c4 {[%clk 0:15:00]}  c6 {[%clk 0:15:00]} 3. Nc3 {[%clk 0:15:00]}  Nf6 {[%clk 0:14:31]} 4. Nf3 {[%clk 0:16:12]}  e6 {[%clk 0:14:31]} 5. Qc2 {[%clk 0:16:12]}  Nbd7 {[%clk 0:14:31]} 6. cxd5 {[%clk 0:16:12]}  exd5 {[%clk 0:14:31]} 7. Bf4 {[%clk 0:16:12]}  Nh5 {[%clk 0:14:31]} 8. g3 {[%clk 0:16:12]}  Be7 {[%clk 0:14:31]} 9. h4 {[%clk 0:16:12]}  Ndf6 {[%clk 0:11:25]} 10. e3 {[%clk 0:16:14]}  Nxf4 {[%clk 0:11:25]} 11. gxf4 {[%clk 0:16:14]}  Bg4 {[%clk 0:11:25]} 12. Ne5 {[%clk 0:16:14]}  Bh5 {[%clk 0:11:25]} 13. Be2 {[%clk 0:16:10]}  Bxe2 {[%clk 0:10:20]} 14. Kxe2 {[%clk 0:12:30]}  Nd7 {[%clk 0:10:20]} 15. Rag1 {[%clk 0:12:30]}  Bf6 {[%clk 0:10:20]} 16. h5 {[%clk 0:12:30]}  Qe7 {[%clk 0:10:20]} 17. a3 {[%clk 0:12:22]}  Nb6 {[%clk 0:09:19]} 18. Rg2 {[%clk 0:10:33]}  O-O-O {[%clk 0:07:18]} 19. Na4 {[%clk 0:10:33]}  Nxa4 {[%clk 0:06:54]} 20. Qxa4 {[%clk 0:05:44]}  Kb8 {[%clk 0:06:54]} 21. Qb4 {[%clk 0:05:44]}  Qe6 {[%clk 0:06:54]} 22. f5 {[%clk 0:05:05]}  Qe8 {[%clk 0:05:27]} 23. f4 {[%clk 0:05:05]}  Rc8 {[%clk 0:05:27]} 24. Qc3 {[%clk 0:04:26]}  Rc7 {[%clk 0:04:50]} 25. b4 {[%clk 0:04:26]}  Qc8 {[%clk 0:04:50]} 26. Qd3 {[%clk 0:04:26]}  Re8 {[%clk 0:04:41]} 27. Rhg1 {[%clk 0:00:59]}  Ka8 {[%clk 0:04:41]} 28. Rc1 {[%clk 0:00:59]}  a6 {[%clk 0:04:41]} 29. Kd2 {[%clk 0:00:59]}  Rg8 {[%clk 0:02:38]} 30. Rcg1 {[%clk 0:01:13]}  Qf8 {[%clk 0:02:38]} 31. Qc2 {[%clk 0:01:13]}  Kb8 {[%clk 0:02:38]} 32. Ng4 {[%clk 0:01:13]}  Bd8 {[%clk 0:02:38]} 33. Nh6 {[%clk 0:01:13]}  Bf6 {[%clk 0:01:48]} 34. Nxg8 {[%clk 0:01:02]}  Qxg8 {[%clk 0:01:48]} 35. Qc5 {[%clk 0:01:02]}  Qc8 {[%clk 0:00:29]} 36. Rxg7 {[%clk 0:00:13]}  Bxg7 {[%clk 0:00:29]} 37. Rxg7 {[%clk 0:00:13]}  Qxf5 {[%clk 0:00:29]} 38. Qd6 {[%clk 0:00:13]}  b6 {[%clk 0:00:29]} 39. Qe5 {[%clk 0:00:13]}  Qb1 {[%clk 0:00:29]} 40. Rxf7 {[%clk 0:00:13]}  Qb2+ {[%clk 0:00:29]} 41. Ke1 {[%clk 0:00:13]}  Qc1+ {[%clk 0:00:29]} 42. Kf2 {[%clk 0:00:13]}  Qd2+ {[%clk 0:00:29]} 43. Kg3 {[%clk 0:00:13]}  Qe1+ {[%clk 0:00:29]} 44. Kg4 {[%clk 0:00:13]}  Qe2+ {[%clk 0:00:29]} 45. Kg5 {[%clk 0:00:13]}  Qg2+ {[%clk 0:00:29]} 46. Kh6 {[%clk 0:00:13]} 1-0


[Site "http://www.Chess.com"]